[Event "*** Titled Tuesday Blitz"]
[Site "Chess.com"]
[Date "2020.12.01"]
[Round "2"]
[White "Rodalquilar"]
[Black "zverr1"]
[Result "1-0"]
[WhiteElo "2687"]
[BlackElo "2468"]
[TimeControl "180+1"]
[EndTime "10:16:59 PST"]
[Termination "Rodalquilar won by checkmate"]

1. d4 {[%clk 0:03:00.9]} 1... Nf6 {[%clk 0:03:00.2]} 2. Bf4 {[%clk 0:03:01]}
2... g6 {[%clk 0:02:55.3]} 3. e3 {[%clk 0:03:01.2]} 3... d6 {[%clk 0:02:53.5]}
4. Be2 {[%clk 0:02:59.8]} 4... Bg7 {[%clk 0:02:49.9]} 5. Nf3 {[%clk 0:03:00.2]}
5... c5 {[%clk 0:02:44.4]} 6. O-O {[%clk 0:02:59.8]} 6... Qb6 {[%clk 0:02:44.3]}
7. Nbd2 {[%clk 0:02:59.6]} 7... cxd4 {[%clk 0:02:38.5]} 8. exd4 {[%clk
0:02:57.1]} 8... Nc6 {[%clk 0:02:33.2]} 9. c3 {[%clk 0:02:56.9]} 9... O-O {[%clk
0:02:21.9]} 10. h3 {[%clk 0:02:56.7]} 10... Qd8 {[%clk 0:02:13.1]} 11. Bh2
{[%clk 0:02:53.9]} 11... Bf5 {[%clk 0:02:11.3]} 12. a4 {[%clk 0:02:52]} 12...
Ne4 {[%clk 0:02:04.5]} 13. Nxe4 {[%clk 0:02:49.7]} 13... Bxe4 {[%clk 0:02:04.6]}
14. Re1 {[%clk 0:02:50.6]} 14... e5 {[%clk 0:01:59.9]} 15. dxe5 {[%clk
0:02:44.8]} 15... dxe5 {[%clk 0:01:53.8]} 16. Qb3 {[%clk 0:02:44.8]} 16... Qb6
{[%clk 0:01:35.2]} 17. Qxb6 {[%clk 0:02:44.1]} 17... axb6 {[%clk 0:01:36.1]} 18.
Nd2 {[%clk 0:02:44.9]} 18... Bd5 {[%clk 0:01:29.3]} 19. Bc4 {[%clk 0:02:45.1]}
19... Rfd8 {[%clk 0:01:25.2]} 20. Bxd5 {[%clk 0:02:45]} 20... Rxd5 {[%clk
0:01:26.1]} 21. Nc4 {[%clk 0:02:45.9]} 21... Ra6 {[%clk 0:01:14.7]} 22. b4
{[%clk 0:02:37.5]} 22... b5 {[%clk 0:01:14.9]} 23. Ne3 {[%clk 0:02:37.3]} 23...
Rd3 {[%clk 0:01:09.1]} 24. axb5 {[%clk 0:02:37.5]} 24... Rxa1 {[%clk 0:01:09.8]}
25. Rxa1 {[%clk 0:02:38.1]} 25... Ne7 {[%clk 0:01:07.8]} 26. Ra8+ {[%clk
0:02:38]} 26... Bf8 {[%clk 0:01:07.6]} 27. Bxe5 {[%clk 0:02:38.4]} 27... f6
{[%clk 0:00:58.6]} 28. Bxf6 {[%clk 0:02:27.2]} 28... Kf7 {[%clk 0:00:58.5]} 29.
Bd4 {[%clk 0:02:13.6]} 29... Bh6 {[%clk 0:00:39.6]} 30. Ng4 {[%clk 0:01:58.7]}
30... Bf4 {[%clk 0:00:34.4]} 31. g3 {[%clk 0:01:59]} 31... Bd6 {[%clk
0:00:25.8]} 32. Ra7 {[%clk 0:01:55.9]} 32... h5 {[%clk 0:00:22.6]} 33. Ne5+
{[%clk 0:01:51.1]} 33... Bxe5 {[%clk 0:00:22.3]} 34. Bxe5 {[%clk 0:01:52]} 34...
Ke6 {[%clk 0:00:23.2]} 35. Rxb7 {[%clk 0:01:50.2]} 35... Nd5 {[%clk 0:00:17.9]}
36. Bd4 {[%clk 0:01:34]} 36... Nxc3 {[%clk 0:00:17.9]} 37. Bxc3 {[%clk
0:01:34.4]} 37... Rxc3 {[%clk 0:00:18.8]} 38. Rb6+ {[%clk 0:01:30.2]} 38... Kf5
{[%clk 0:00:18.7]} 39. Rc6 {[%clk 0:01:30.4]} 39... Rb3 {[%clk 0:00:18.2]} 40.
Rc4 {[%clk 0:01:30.6]} 40... Rd3 {[%clk 0:00:14.7]} 41. b6 {[%clk 0:01:29.5]}
41... Rd6 {[%clk 0:00:15]} 42. Rc5+ {[%clk 0:01:29.8]} 42... Ke4 {[%clk
0:00:15.6]} 43. Rb5 {[%clk 0:01:30.2]} 43... Kf3 {[%clk 0:00:16.1]} 44. b7
{[%clk 0:01:27.5]} 44... Rd1+ {[%clk 0:00:16.3]} 45. Kh2 {[%clk 0:01:27.9]}
45... Rd2 {[%clk 0:00:15.2]} 46. b8=Q {[%clk 0:01:24.2]} 46... Rxf2+ {[%clk
0:00:15.5]} 47. Kg1 {[%clk 0:01:24]} 47... Rg2+ {[%clk 0:00:14.2]} 48. Kf1
{[%clk 0:01:24.3]} 48... Rf2+ {[%clk 0:00:14.8]} 49. Ke1 {[%clk 0:01:24.8]}
49... Re2+ {[%clk 0:00:15.5]} 50. Kd1 {[%clk 0:01:25.3]} 50... Re4 {[%clk
0:00:15.7]} 51. Qf8+ {[%clk 0:01:22.1]} 51... Kxg3 {[%clk 0:00:15.3]} 52. Rg5+
{[%clk 0:01:20.5]} 52... Kxh3 {[%clk 0:00:14.2]} 53. Qf3+ {[%clk 0:01:19.6]}
53... Kh2 {[%clk 0:00:14.7]} 54. Qg2# {[%clk 0:01:19.2]} 1-0

[Event "*** Titled Tuesday Blitz"]
[Site "Chess.com"]
[Date "2020.12.01"]
[Round "2"]
[White "Agibileg"]
[Black "daro94"]
[Result "0-1"]
[WhiteElo "2532"]
[BlackElo "2844"]
[TimeControl "180+1"]
[EndTime "10:17:01 PST"]
[Termination "daro94 won by checkmate"]

1. d4 {[%clk 0:03:00.6]} 1... Nf6 {[%clk 0:02:59.9]} 2. c4 {[%clk 0:03:00.9]}
2... d6 {[%clk 0:02:57.3]} 3. Nc3 {[%clk 0:02:59.8]} 3... e5 {[%clk 0:02:57.7]}
4. Nf3 {[%clk 0:02:48.5]} 4... Nbd7 {[%clk 0:02:56.1]} 5. e4 {[%clk 0:02:46.3]}
5... g6 {[%clk 0:02:55.7]} 6. Be2 {[%clk 0:02:43.9]} 6... Bg7 {[%clk 0:02:56.1]}
7. O-O {[%clk 0:02:44.3]} 7... O-O {[%clk 0:02:56.8]} 8. Be3 {[%clk 0:02:41.6]}
8... c6 {[%clk 0:02:42.2]} 9. d5 {[%clk 0:02:33.9]} 9... c5 {[%clk 0:02:41.6]}
10. Ne1 {[%clk 0:02:27.3]} 10... Kh8 {[%clk 0:02:39.2]} 11. Nd3 {[%clk
0:02:19.5]} 11... Ng8 {[%clk 0:02:38.6]} 12. a3 {[%clk 0:02:12.4]} 12... f5
{[%clk 0:02:37.6]} 13. f3 {[%clk 0:02:13]} 13... f4 {[%clk 0:02:36.2]} 14. Bf2
{[%clk 0:02:13.6]} 14... g5 {[%clk 0:02:35.5]} 15. b4 {[%clk 0:02:14.2]} 15...
b6 {[%clk 0:02:35.8]} 16. bxc5 {[%clk 0:02:14.7]} 16... Nxc5 {[%clk 0:02:33.4]}
17. Nxc5 {[%clk 0:02:14.4]} 17... bxc5 {[%clk 0:02:34.2]} 18. Qa4 {[%clk
0:02:13.4]} 18... Nf6 {[%clk 0:02:24.9]} 19. Qc6 {[%clk 0:02:10.2]} 19... Rb8
{[%clk 0:02:24]} 20. Rab1 {[%clk 0:02:10.7]} 20... Rxb1 {[%clk 0:01:03.2]} 21.
Rxb1 {[%clk 0:02:11.6]} 21... g4 {[%clk 0:01:03.8]} 22. Rb8 {[%clk 0:02:00.6]}
22... g3 {[%clk 0:01:00.1]} 23. hxg3 {[%clk 0:01:57.8]} 23... fxg3 {[%clk
0:01:01]} 24. Bxg3 {[%clk 0:01:55.8]} 24... Nh5 {[%clk 0:01:00]} 25. Bf2 {[%clk
0:01:17]} 25... Nf4 {[%clk 0:00:58.5]} 26. Kf1 {[%clk 0:01:11.5]} 26... Bh6
{[%clk 0:00:34.2]} 27. Nb5 {[%clk 0:00:21.6]} 27... Qg5 {[%clk 0:00:27.8]} 28.
Rxc8 {[%clk 0:00:21.3]} 28... Qxg2+ {[%clk 0:00:27.5]} 29. Ke1 {[%clk
0:00:21.5]} 29... Qh1+ {[%clk 0:00:20.3]} 30. Bf1 {[%clk 0:00:15.7]} 30... Nd3+
{[%clk 0:00:18.3]} 31. Ke2 {[%clk 0:00:15.6]} 31... Qxf3# {[%clk 0:00:18.4]} 0-1

[Event "*** Titled Tuesday Blitz"]
[Site "Chess.com"]
[Date "2020.12.01"]
[Round "2"]
[White "sopo-tereladze"]
[Black "IMJonathanCarlstedt"]
[Result "0-1"]
[WhiteElo "2283"]
[BlackElo "2495"]
[TimeControl "180+1"]
[EndTime "10:17:01 PST"]
[Termination "IMJonathanCarlstedt won by resignation"]

1. d4 {[%clk 0:02:59.1]} 1... Nf6 {[%clk 0:02:59.2]} 2. Nf3 {[%clk 0:02:59.2]}
2... e6 {[%clk 0:02:59.6]} 3. Bf4 {[%clk 0:02:59.6]} 3... c5 {[%clk 0:02:58.4]}
4. e3 {[%clk 0:02:59.2]} 4... Nc6 {[%clk 0:02:59]} 5. c3 {[%clk 0:02:59.2]} 5...
d5 {[%clk 0:02:59.6]} 6. Bd3 {[%clk 0:02:59]} 6... Be7 {[%clk 0:02:59.8]} 7. O-O
{[%clk 0:02:58.6]} 7... Nh5 {[%clk 0:02:57.6]} 8. Be5 {[%clk 0:02:55.2]} 8... f6
{[%clk 0:02:57.2]} 9. Nh4 {[%clk 0:02:46.5]} 9... fxe5 {[%clk 0:02:48.2]} 10.
Qxh5+ {[%clk 0:02:45]} 10... Kd7 {[%clk 0:02:48.6]} 11. dxe5 {[%clk 0:02:44]}
11... Bxh4 {[%clk 0:02:47.4]} 12. Nd2 {[%clk 0:02:39.8]} 12... Be7 {[%clk
0:02:46.3]} 13. e4 {[%clk 0:02:38.9]} 13... d4 {[%clk 0:02:43.4]} 14. cxd4
{[%clk 0:02:36.4]} 14... Nxd4 {[%clk 0:02:42.9]} 15. Rac1 {[%clk 0:02:35.1]}
15... Qe8 {[%clk 0:02:41.4]} 16. Qh3 {[%clk 0:02:32.2]} 16... Qg6 {[%clk
0:02:33.9]} 17. Rfd1 {[%clk 0:02:29.9]} 17... b6 {[%clk 0:02:31.2]} 18. f4
{[%clk 0:02:15.7]} 18... Kd8 {[%clk 0:02:26.4]} 19. Nf3 {[%clk 0:02:12.4]} 19...
Bd7 {[%clk 0:02:16.8]} 20. f5 {[%clk 0:02:05]} 20... Qh6 {[%clk 0:02:07.2]} 21.
Qg4 {[%clk 0:01:59.9]} 21... Rf8 {[%clk 0:01:49.2]} 22. Bc4 {[%clk 0:01:40.2]}
22... exf5 {[%clk 0:01:40.4]} 23. exf5 {[%clk 0:01:39.6]} 23... Bxf5 {[%clk
0:01:40.4]} 24. Rxd4+ {[%clk 0:01:14.3]} 24... cxd4 {[%clk 0:01:28.3]} 25. Qxd4+
{[%clk 0:01:15.2]} 25... Ke8 {[%clk 0:01:28.2]} 26. Bb5+ {[%clk 0:01:03.8]}
26... Kf7 {[%clk 0:01:28.1]} 27. Rc7 {[%clk 0:01:03.7]} 27... Rfd8 {[%clk
0:01:17.4]} 28. Bc4+ {[%clk 0:00:53.6]} 28... Kf8 {[%clk 0:01:15]} 29. Qf2
{[%clk 0:00:54.5]} 29... Qc1+ {[%clk 0:01:07.6]} 30. Ne1 {[%clk 0:00:53.2]}
30... g6 {[%clk 0:01:05.3]} 31. Rxe7 {[%clk 0:00:39.2]} 31... Kxe7 {[%clk
0:01:03.4]} 32. Qh4+ {[%clk 0:00:38]} 32... Kd7 {[%clk 0:00:59.2]} 33. Bb5+
{[%clk 0:00:28.6]} 33... Kc8 {[%clk 0:00:59.2]} 34. Ba6+ {[%clk 0:00:26.1]}
34... Kb8 {[%clk 0:00:58.7]} 35. Qxd8+ {[%clk 0:00:24.4]} 35... Bc8 {[%clk
0:00:54.7]} 36. Qd6+ {[%clk 0:00:14.6]} 36... Qc7 {[%clk 0:00:53.6]} 37. Qf8
{[%clk 0:00:09.7]} 37... Qc5+ {[%clk 0:00:51.3]} 38. Kf1 {[%clk 0:00:08]} 38...
Qxf8+ {[%clk 0:00:50.3]} 0-1

[Event "*** Titled Tuesday Blitz"]
[Site "Chess.com"]
[Date "2020.12.01"]
[Round "2"]
[White "Massakru"]
[Black "mjray79"]
[Result "1-0"]
[WhiteElo "2294"]
[BlackElo "2446"]
[TimeControl "180+1"]
[EndTime "10:17:02 PST"]
[Termination "Massakru won by checkmate"]

1. e4 {[%clk 0:03:00]} 1... e5 {[%clk 0:02:58.8]} 2. d4 {[%clk 0:03:00.4]} 2...
exd4 {[%clk 0:02:57.7]} 3. Qxd4 {[%clk 0:03:01.3]} 3... Nc6 {[%clk 0:02:57]} 4.
Qe3 {[%clk 0:03:02]} 4... d6 {[%clk 0:02:47.8]} 5. Nc3 {[%clk 0:03:01.3]} 5...
Bd7 {[%clk 0:02:46.3]} 6. Bd2 {[%clk 0:03:00.1]} 6... Be7 {[%clk 0:02:44.3]} 7.
O-O-O {[%clk 0:02:59.3]} 7... Nf6 {[%clk 0:02:31.4]} 8. h3 {[%clk 0:02:54.2]}
8... Be6 {[%clk 0:02:31.1]} 9. f4 {[%clk 0:02:53]} 9... a6 {[%clk 0:02:12]} 10.
Nf3 {[%clk 0:02:50.5]} 10... b5 {[%clk 0:02:11.6]} 11. f5 {[%clk 0:02:47.1]}
11... Bd7 {[%clk 0:02:10.3]} 12. g4 {[%clk 0:02:44.1]} 12... b4 {[%clk
0:02:07.8]} 13. Nd5 {[%clk 0:02:44]} 13... a5 {[%clk 0:02:05.1]} 14. g5 {[%clk
0:02:41.4]} 14... Nh5 {[%clk 0:02:03.8]} 15. Bc4 {[%clk 0:02:29.8]} 15... a4
{[%clk 0:01:40.9]} 16. Nxb4 {[%clk 0:02:25.7]} 16... Nxb4 {[%clk 0:01:40]} 17.
Bxb4 {[%clk 0:02:24]} 17... Rb8 {[%clk 0:01:39.9]} 18. Bc3 {[%clk 0:02:22.8]}
18... Qc8 {[%clk 0:01:33.8]} 19. Nd4 {[%clk 0:02:03.7]} 19... Qb7 {[%clk
0:01:28.8]} 20. h4 {[%clk 0:01:55]} 20... c5 {[%clk 0:01:12]} 21. Ne2 {[%clk
0:01:46.9]} 21... Bc6 {[%clk 0:01:11.7]} 22. Bd5 {[%clk 0:01:40]} 22... Bxd5
{[%clk 0:00:56.5]} 23. Rxd5 {[%clk 0:01:40.9]} 23... O-O {[%clk 0:00:53.6]} 24.
Qf3 {[%clk 0:01:39.9]} 24... g6 {[%clk 0:00:53]} 25. Nf4 {[%clk 0:01:23.5]}
25... Nxf4 {[%clk 0:00:42.8]} 26. Qxf4 {[%clk 0:01:24.4]} 26... Rfe8 {[%clk
0:00:37.2]} 27. h5 {[%clk 0:01:22.1]} 27... Bf8 {[%clk 0:00:24.7]} 28. hxg6
{[%clk 0:01:19.4]} 28... fxg6 {[%clk 0:00:22.4]} 29. fxg6 {[%clk 0:01:16]} 29...
Bg7 {[%clk 0:00:22.7]} 30. Rxh7 {[%clk 0:01:09]} 30... Rf8 {[%clk 0:00:22]} 31.
Rf5 {[%clk 0:00:41.8]} 31... Rxf5 {[%clk 0:00:15.1]} 32. exf5 {[%clk 0:00:36.4]}
32... Qg2 {[%clk 0:00:12.8]} 33. Rxg7+ {[%clk 0:00:34.7]} 33... Kf8 {[%clk
0:00:13.1]} 34. Qxd6+ {[%clk 0:00:32.6]} 34... Ke8 {[%clk 0:00:13.6]} 35. Qe7#
{[%clk 0:00:32.8]} 1-0

[Event "*** Titled Tuesday Blitz"]
[Site "Chess.com"]
[Date "2020.12.01"]
[Round "2"]
[White "Doraemon7"]
[Black "LiamVrolijk"]
[Result "0-1"]
[WhiteElo "2524"]
[BlackElo "2826"]
[TimeControl "180+1"]
[EndTime "10:17:03 PST"]
[Termination "LiamVrolijk won by resignation"]

1. d4 {[%clk 0:03:00.2]} 1... Nf6 {[%clk 0:02:58.7]} 2. c4 {[%clk 0:03:00]} 2...
e6 {[%clk 0:02:58.4]} 3. g3 {[%clk 0:03:00.6]} 3... c5 {[%clk 0:02:58.2]} 4. d5
{[%clk 0:02:59.2]} 4... exd5 {[%clk 0:02:58.2]} 5. cxd5 {[%clk 0:03:00.1]} 5...
b5 {[%clk 0:02:58.2]} 6. e4 {[%clk 0:02:57.3]} 6... Nxe4 {[%clk 0:02:54.9]} 7.
Bg2 {[%clk 0:02:40.6]} 7... Nd6 {[%clk 0:02:53.2]} 8. Nf3 {[%clk 0:02:37.2]}
8... Be7 {[%clk 0:02:50.4]} 9. O-O {[%clk 0:02:35.7]} 9... O-O {[%clk
0:02:50.3]} 10. Bf4 {[%clk 0:02:30.6]} 10... Bb7 {[%clk 0:02:40.7]} 11. Re1
{[%clk 0:02:27.1]} 11... Nc4 {[%clk 0:02:27.8]} 12. Nc3 {[%clk 0:01:30.6]} 12...
a6 {[%clk 0:02:09.8]} 13. b3 {[%clk 0:01:03.9]} 13... Nb6 {[%clk 0:02:08.8]} 14.
d6 {[%clk 0:00:45.8]} 14... Bf6 {[%clk 0:02:08.5]} 15. Rc1 {[%clk 0:00:46.4]}
15... c4 {[%clk 0:01:59.5]} 16. Ne4 {[%clk 0:00:41.9]} 16... Bxe4 {[%clk
0:01:58.9]} 17. Rxe4 {[%clk 0:00:42.8]} 17... Nc6 {[%clk 0:01:58.9]} 18. h4
{[%clk 0:00:29.9]} 18... h6 {[%clk 0:01:51.8]} 19. bxc4 {[%clk 0:00:29.6]} 19...
Nxc4 {[%clk 0:01:51.7]} 20. Nh2 {[%clk 0:00:22]} 20... Re8 {[%clk 0:01:35.9]}
21. Ng4 {[%clk 0:00:20]} 21... Bb2 {[%clk 0:01:31.5]} 22. Rb1 {[%clk 0:00:17.2]}
22... Rxe4 {[%clk 0:01:24.9]} 23. Bxe4 {[%clk 0:00:18.1]} 23... Rc8 {[%clk
0:01:25.5]} 24. Qd3 {[%clk 0:00:15.2]} 24... Nd4 {[%clk 0:01:02.7]} 25. Bd5
{[%clk 0:00:11.8]} 25... Ne6 {[%clk 0:01:00.5]} 26. Qf5 {[%clk 0:00:08.9]} 26...
Qf8 {[%clk 0:00:47.4]} 27. Be4 {[%clk 0:00:08]} 27... g6 {[%clk 0:00:44.7]} 28.
Qd5 {[%clk 0:00:08.1]} 28... h5 {[%clk 0:00:41.9]} 29. Nh6+ {[%clk 0:00:05.5]}
29... Kg7 {[%clk 0:00:40.6]} 30. Qd1 {[%clk 0:00:04.1]} 30... Nxf4 {[%clk
0:00:39.1]} 31. gxf4 {[%clk 0:00:03.8]} 31... Kxh6 {[%clk 0:00:39.4]} 0-1

[Event "*** Titled Tuesday Blitz"]
[Site "Chess.com"]
[Date "2020.12.01"]
[Round "2"]
[White "AquivaRubinstein"]
[Black "ChessLover0108"]
[Result "0-1"]
[WhiteElo "2502"]
[BlackElo "2789"]
[TimeControl "180+1"]
[EndTime "10:17:07 PST"]
[Termination "ChessLover0108 won by checkmate"]

1. e4 {[%clk 0:03:00.6]} 1... c5 {[%clk 0:02:58.1]} 2. Nf3 {[%clk 0:03:00.4]}
2... d6 {[%clk 0:02:57.8]} 3. d4 {[%clk 0:03:00.4]} 3... cxd4 {[%clk 0:02:58.4]}
4. Nxd4 {[%clk 0:03:00.4]} 4... Nf6 {[%clk 0:02:58.6]} 5. Nc3 {[%clk 0:02:59.8]}
5... a6 {[%clk 0:02:57.9]} 6. Bg5 {[%clk 0:02:58.5]} 6... Nbd7 {[%clk 0:02:57]}
7. Qe2 {[%clk 0:02:52]} 7... Qc7 {[%clk 0:02:53.6]} 8. O-O-O {[%clk 0:02:49.2]}
8... b5 {[%clk 0:02:45.3]} 9. f4 {[%clk 0:02:08.8]} 9... e6 {[%clk 0:02:37.9]}
10. a3 {[%clk 0:02:03.7]} 10... Be7 {[%clk 0:02:32]} 11. g4 {[%clk 0:02:02.2]}
11... Bb7 {[%clk 0:02:24]} 12. Bg2 {[%clk 0:02:00.3]} 12... O-O {[%clk
0:02:09.4]} 13. Bh4 {[%clk 0:01:42.3]} 13... b4 {[%clk 0:02:06.3]} 14. axb4
{[%clk 0:01:37.2]} 14... a5 {[%clk 0:02:06.1]} 15. b5 {[%clk 0:01:23.6]} 15...
a4 {[%clk 0:02:05.1]} 16. g5 {[%clk 0:01:18.5]} 16... Ne8 {[%clk 0:01:53.8]} 17.
f5 {[%clk 0:01:11.2]} 17... a3 {[%clk 0:01:47.2]} 18. fxe6 {[%clk 0:00:51.3]}
18... axb2+ {[%clk 0:01:45.1]} 19. Kxb2 {[%clk 0:00:49.9]} 19... Qc5 {[%clk
0:01:39.2]} 20. Nb1 {[%clk 0:00:38.8]} 20... Ne5 {[%clk 0:01:25.5]} 21. Bf1
{[%clk 0:00:32.1]} 21... fxe6 {[%clk 0:01:21.8]} 22. Nb3 {[%clk 0:00:30.4]}
22... Qb4 {[%clk 0:01:19.7]} 23. Rd4 {[%clk 0:00:20.1]} 23... Qxd4+ {[%clk
0:00:59.5]} 24. Nxd4 {[%clk 0:00:20]} 24... Rf4 {[%clk 0:01:00.4]} 25. Bg3
{[%clk 0:00:18.1]} 25... Rxe4 {[%clk 0:00:59.9]} 26. Qd1 {[%clk 0:00:17]} 26...
Bxg5 {[%clk 0:00:47.4]} 27. Nc3 {[%clk 0:00:16.2]} 27... Re3 {[%clk 0:00:39]}
28. Rg1 {[%clk 0:00:12.7]} 28... Bf6 {[%clk 0:00:39.1]} 29. Bg2 {[%clk
0:00:12.6]} 29... Nc4+ {[%clk 0:00:38.1]} 30. Kb3 {[%clk 0:00:11.6]} 30... d5
{[%clk 0:00:37.4]} 31. Re1 {[%clk 0:00:08]} 31... Ra3+ {[%clk 0:00:35.3]} 32.
Kb4 {[%clk 0:00:05.3]} 32... Be7+ {[%clk 0:00:36.2]} 33. Bd6 {[%clk 0:00:03.7]}
33... Bxd6# {[%clk 0:00:37.1]} 0-1

[Event "*** Titled Tuesday Blitz"]
[Site "Chess.com"]
[Date "2020.12.01"]
[Round "2"]
[White "esskeettit"]
[Black "chessmachine14"]
[Result "1-0"]
[WhiteElo "2442"]
[BlackElo "2232"]
[TimeControl "180+1"]
[EndTime "10:17:07 PST"]
[Termination "esskeettit won by checkmate"]

1. d4 {[%clk 0:03:00.7]} 1... Nf6 {[%clk 0:02:47.8]} 2. c4 {[%clk 0:02:58.3]}
2... g6 {[%clk 0:02:48]} 3. Nf3 {[%clk 0:02:55.9]} 3... Bg7 {[%clk 0:02:45.4]}
4. e3 {[%clk 0:02:56.3]} 4... O-O {[%clk 0:02:45.3]} 5. Be2 {[%clk 0:02:57.2]}
5... d6 {[%clk 0:02:41.8]} 6. O-O {[%clk 0:02:57.6]} 6... Nbd7 {[%clk
0:02:41.7]} 7. Nc3 {[%clk 0:02:58.1]} 7... e5 {[%clk 0:02:39.1]} 8. Qc2 {[%clk
0:02:57.8]} 8... Re8 {[%clk 0:02:37.5]} 9. dxe5 {[%clk 0:02:56.2]} 9... Nxe5
{[%clk 0:02:32.2]} 10. Rd1 {[%clk 0:02:40.7]} 10... Nfd7 {[%clk 0:01:20.1]} 11.
Nxe5 {[%clk 0:02:28.6]} 11... Bxe5 {[%clk 0:01:14.8]} 12. f4 {[%clk 0:02:02.1]}
12... Bg7 {[%clk 0:01:13.5]} 13. e4 {[%clk 0:01:52.7]} 13... Nc5 {[%clk
0:01:13.5]} 14. Bf3 {[%clk 0:01:51.1]} 14... Qh4 {[%clk 0:00:41.9]} 15. Be3
{[%clk 0:01:46.6]} 15... Ne6 {[%clk 0:00:39.3]} 16. g3 {[%clk 0:01:41.1]} 16...
Qf6 {[%clk 0:00:37.9]} 17. Rab1 {[%clk 0:01:36.2]} 17... Nc5 {[%clk 0:00:36.6]}
18. Nd5 {[%clk 0:01:31.3]} 18... Qd8 {[%clk 0:00:36.2]} 19. b4 {[%clk
0:01:26.3]} 19... Nxe4 {[%clk 0:00:31.7]} 20. Bxe4 {[%clk 0:01:20.8]} 20... Rxe4
{[%clk 0:00:31.5]} 21. Qxe4 {[%clk 0:01:20.9]} 21... Bf5 {[%clk 0:00:31.5]} 22.
Ne7+ {[%clk 0:01:20]} 22... Kh8 {[%clk 0:00:24.4]} 23. Nxf5 {[%clk 0:01:19.9]}
23... gxf5 {[%clk 0:00:25.3]} 24. Qxf5 {[%clk 0:01:19]} 24... Qe8 {[%clk
0:00:25.6]} 25. Re1 {[%clk 0:01:04]} 25... Qa4 {[%clk 0:00:15.1]} 26. Qxf7
{[%clk 0:00:55.7]} 26... Rf8 {[%clk 0:00:14.8]} 27. Qxc7 {[%clk 0:00:51.1]}
27... Qxa2 {[%clk 0:00:15.1]} 28. Bf2 {[%clk 0:00:42.1]} 28... d5 {[%clk
0:00:13]} 29. cxd5 {[%clk 0:00:37.9]} 29... Qxd5 {[%clk 0:00:12.3]} 30. Rbd1
{[%clk 0:00:37.9]} 30... Qb5 {[%clk 0:00:11.8]} 31. Rd7 {[%clk 0:00:36.5]} 31...
Rg8 {[%clk 0:00:12.1]} 32. Rxg7 {[%clk 0:00:31.5]} 32... Rxg7 {[%clk 0:00:11.5]}
33. Bd4 {[%clk 0:00:31.7]} 33... Qxb4 {[%clk 0:00:09.7]} 34. Qxg7# {[%clk
0:00:30.8]} 1-0

[Event "*** Titled Tuesday Blitz"]
[Site "Chess.com"]
[Date "2020.12.01"]
[Round "2"]
[White "AlexeiShirov"]
[Black "Chessdreamer2020"]
[Result "1-0"]
[WhiteElo "2849"]
[BlackElo "2538"]
[TimeControl "180+1"]
[EndTime "10:17:10 PST"]
[Termination "AlexeiShirov won on time"]

1. e4 {[%clk 0:03:00.6]} 1... d6 {[%clk 0:02:37.4]} 2. d4 {[%clk 0:02:59.7]}
2... Nf6 {[%clk 0:02:37.9]} 3. Nc3 {[%clk 0:03:00.2]} 3... e5 {[%clk 0:02:37.4]}
4. Nf3 {[%clk 0:02:57]} 4... Nbd7 {[%clk 0:02:36.3]} 5. Bc4 {[%clk 0:02:55.8]}
5... Be7 {[%clk 0:02:36.4]} 6. O-O {[%clk 0:02:55.1]} 6... O-O {[%clk
0:02:36.7]} 7. a4 {[%clk 0:02:54.8]} 7... a5 {[%clk 0:02:35.4]} 8. b3 {[%clk
0:02:47.3]} 8... c6 {[%clk 0:02:33.3]} 9. Re1 {[%clk 0:02:40.2]} 9... h6 {[%clk
0:02:25.5]} 10. Ba3 {[%clk 0:02:31.5]} 10... Re8 {[%clk 0:02:21.7]} 11. Qd2
{[%clk 0:02:28.9]} 11... Bf8 {[%clk 0:02:17.6]} 12. Rad1 {[%clk 0:02:22.9]}
12... Qc7 {[%clk 0:02:18.1]} 13. d5 {[%clk 0:02:17.6]} 13... Nb6 {[%clk
0:02:12.1]} 14. Be2 {[%clk 0:02:00.9]} 14... cxd5 {[%clk 0:02:01.7]} 15. exd5
{[%clk 0:02:00.3]} 15... Bf5 {[%clk 0:01:52.5]} 16. Rc1 {[%clk 0:01:48.2]} 16...
Ne4 {[%clk 0:01:27]} 17. Nxe4 {[%clk 0:01:47.2]} 17... Bxe4 {[%clk 0:01:27.9]}
18. Bb5 {[%clk 0:01:45.1]} 18... Bxd5 {[%clk 0:01:25.3]} 19. Bxe8 {[%clk
0:01:43.5]} 19... Rxe8 {[%clk 0:01:26.2]} 20. Nd4 {[%clk 0:01:40.9]} 20... Qd7
{[%clk 0:00:56.4]} 21. Ne2 {[%clk 0:01:40.3]} 21... Qg4 {[%clk 0:00:50.9]} 22.
Ng3 {[%clk 0:01:39.7]} 22... Bc6 {[%clk 0:00:36.2]} 23. Rcd1 {[%clk 0:01:29.8]}
23... Nd5 {[%clk 0:00:34.9]} 24. f3 {[%clk 0:01:23.2]} 24... Qh4 {[%clk
0:00:23.7]} 25. Nf5 {[%clk 0:01:16.3]} 25... Qf6 {[%clk 0:00:21.6]} 26. Ne3
{[%clk 0:01:11.9]} 26... Nf4 {[%clk 0:00:19.7]} 27. Qxa5 {[%clk 0:00:52.6]}
27... Re6 {[%clk 0:00:12.2]} 28. Qd2 {[%clk 0:00:33.6]} 28... Nh3+ {[%clk
0:00:07.7]} 29. Kh1 {[%clk 0:00:30.5]} 29... Ng5 {[%clk 0:00:07.2]} 30. Nd5
{[%clk 0:00:28.4]} 30... Qf5 {[%clk 0:00:03.9]} 31. c4 {[%clk 0:00:26.9]} 1-0